bitfinex/quotes_ETHUSD_20250724
["timestamp","ask_amount","ask_price","bid_price","bid_amount"]
[1753375800127,0.136,3686.2,3685.9,4.572]
[1753375800326,0.136,3686.2,3685.7,0.136]
[1753375800327,0.4468,3686.1,3685.8,4.572]
[1753375800527,11.31075383,3688.0,3686.0,0.8194]
[1753375800729,0.9102,3687.9,3687.5,0.1352]
[1753375800924,3.0,3687.7,3686.0,0.8194]
[1753375801178,3.0,3687.7,3686.7,2.84844988]
[1753375801179,0.136,3687.2,3686.7,2.84844988]
[1753375801333,0.9102,3687.6,3687.1,2.71211929]
[1753375801538,3.0,3687.9,3686.9,2.71230573]
[1753375801539,0.1352,3687.4,3686.9,0.136]
[1753375801968,0.4468,3687.8,3687.5,2.71186381]
[1753375802129,0.9102,3687.7,3687.3,0.136]
[1753375802345,0.9102,3687.6,3687.3,0.136]
[1753375802530,0.9102,3687.5,3686.8,4.572]
[1753375802729,0.8302,3687.1,3686.7,0.136]
[1753375803170,0.9102,3687.0,3686.7,0.136]
[1753375803375,0.138,3687.2,3687.1,2.7121586]
[1753375803565,0.002,3687.2,3687.1,2.7121586]
[1753375804868,0.4488,3687.2,3687.1,2.7121586]
[1753375805535,0.002,3687.2,3687.1,2.7121586]
[1753375805978,0.4488,3687.2,3687.0,0.136]
[1753375806176,0.002,3687.2,3687.0,0.136]
[1753375806383,0.9102,3687.1,3686.9,4.571]
[1753375806582,0.9102,3687.0,3686.9,4.571]
[1753375806770,0.9102,3687.0,3686.8,0.136]
[1753375807065,0.002,3687.2,3686.9,2.71230573]
[1753375807262,0.002,3687.2,3687.1,2.7121586]
[1753375807854,0.002,3687.2,3687.1,3.1717586]
[1753375808094,0.002,3687.2,3687.1,3.4851586]
[1753375808591,0.002,3687.2,3687.1,3.1717586]
[1753375808792,0.002,3687.2,3687.1,3.89860726]
[1753375808995,0.002,3687.2,3687.1,4.35820726]
[1753375809592,0.002,3687.2,3687.1,2.7121586]
[1753375809766,0.4488,3687.2,3687.1,2.7121586]
[1753375810287,0.002,3687.2,3687.0,0.136]
[1753375810462,0.4468,3687.1,3686.9,4.569]
[1753375810785,0.4468,3687.0,3686.8,0.136]
[1753375810985,0.4468,3687.0,3686.9,4.568]
[1753375811173,0.4468,3687.0,3686.8,0.136]
[1753375811351,0.4468,3687.0,3686.1,1.2674]
[1753375811352,0.831,3687.0,3686.9,4.568]
[1753375811552,0.967,3687.0,3686.6,4.568]
[1753375811963,0.9102,3686.9,3686.6,4.568]
[1753375812187,0.4468,3686.8,3686.6,2.71251308]
[1753375812398,0.4468,3686.8,3686.4,4.567]
[1753375812399,0.9102,3686.7,3686.4,4.567]
[1753375812685,0.9102,3686.6,3686.3,4.567]
[1753375813096,0.4468,3686.6,3686.4,2.71262443]
[1753375813391,0.136,3687.0,3686.9,2.71230573]
[1753375813555,1.2778,3687.8,3687.1,2.7121586]
[1753375813755,1.2778,3687.8,3687.1,7.44228018]
[1753375813967,1.2778,3687.8,3687.1,7.8747586]
[1753375814164,1.2778,3687.8,3687.1,8.93345901]
[1753375814557,1.2778,3687.8,3687.1,8.47385901]
[1753375814961,3.1352,3687.9,3687.1,8.47385901]
[1753375815298,1e-08,3687.2,3687.1,19.96508677]
[1753375815490,1e-08,3687.2,3687.1,19.96408677]
[1753375816158,1e-08,3688.0,3687.9,3.51997027]
[1753375816464,1e-08,3688.4,3688.3,3.51967619]
[1753375816681,1e-08,3688.4,3688.3,8.11278895]
[1753375816891,1e-08,3688.4,3688.3,8.86617619]
[1753375817892,1e-08,3688.4,3688.3,3.98677619]
[1753375818110,1e-08,3688.4,3688.3,8.08467619]
[1753375818525,1e-08,3688.4,3688.0,0.4671]
[1753375818673,1e-08,3688.4,3688.3,2.71127619]
[1753375818874,1e-08,3688.4,3688.3,4.565]
[1753375819106,1e-08,3688.4,3688.3,7.27627619]
[1753375819415,1e-08,3688.4,3688.3,7.27527619]
[1753375819582,1e-08,3688.4,3688.1,2.71140998]
[1753375819784,1e-08,3688.4,3688.3,2.71127619]
[1753375819991,1e-08,3688.4,3688.3,4.564]
[1753375820699,1e-08,3688.4,3688.3,7.74237619]
[1753375820898,1e-08,3688.4,3688.3,8.78775589]
[1753375821709,1e-08,3688.4,3688.3,5.6093797]
[1753375821946,1e-08,3688.4,3688.3,4.564]
[1753375822441,1e-08,3688.4,3688.3,7.27527619]
[1753375822638,1e-08,3688.4,3688.3,4.564]
[1753375823205,0.43300001,3688.4,3687.8,0.7628]
[1753375823408,0.43300001,3688.4,3687.9,7.27355646]
[1753375823704,0.433,3688.3,3687.9,4.562]
[1753375824008,0.48390001,3688.4,3687.9,4.562]
[1753375824321,0.9169,3688.3,3687.9,4.562]
[1753375824527,0.9169,3688.2,3687.9,4.562]
[1753375824709,0.433,3688.1,3687.9,7.27356751]
[1753375824907,0.433,3688.1,3687.9,4.562]
[1753375825143,0.433,3688.1,3688.0,0.1352]
[1753375825345,0.433,3688.1,3688.0,2.84669674]
[1753375825545,1e-08,3688.4,3688.0,1.14722806]
[1753375825752,1e-08,3688.4,3688.3,2.71127619]
[1753375825953,1e-08,3688.4,3688.3,0.1352]
[1753375826120,1e-08,3688.4,3688.3,2.84647619]
[1753375826322,0.43300001,3688.4,3688.3,2.84647619]
[1753375826950,1e-08,3688.4,3688.3,7.40747619]
[1753375827145,1e-08,3688.4,3688.3,8.41936572]
[1753375827459,1e-08,3688.4,3688.3,9.19986572]
[1753375827621,0.002,3688.6,3688.5,2.71112918]
[1753375827822,0.002,3688.6,3688.5,7.29824047]
[1753375828030,0.002,3688.6,3688.5,7.87342918]
[1753375828230,0.002,3688.6,3688.5,4.11477132]
[1753375828452,0.002,3688.6,3688.5,8.67477132]
[1753375828959,0.002,3688.6,3688.5,9.14187132]
[1753375829955,0.002,3688.6,3688.5,8.67477132]
[1753375830257,0.002,3688.6,3688.5,9.14187132]
[1753375832159,0.002,3688.6,3688.5,8.67477132]
[1753375833063,0.002,3688.6,3688.5,9.14187132]
[1753375834168,0.002,3688.6,3688.5,8.67477132]
[1753375835175,0.002,3688.6,3688.5,9.14187132]
[1753375835957,1e-08,3688.6,3688.5,9.14187132]
[1753375836161,1e-08,3688.6,3688.5,9.45527132]
[1753375836391,1e-08,3688.6,3688.5,4.58187132]
[1753375836595,1e-08,3688.6,3688.5,9.16398261]
[1753375836754,1e-08,3688.6,3688.5,4.58187132]
[1753375836960,1e-08,3688.6,3688.5,7.42844047]
[1753375837161,1e-08,3688.6,3688.5,7.86842918]
[1753375837670,1e-08,3688.7,3688.6,6.53715568]
[1753375837993,1e-08,3688.7,3688.6,7.00425568]
[1753375838498,1e-08,3688.7,3688.6,4.31765568]
[1753375838664,1e-08,3688.7,3688.6,5.47438498]
[1753375839370,1e-08,3688.7,3688.6,5.78778498]
[1753375839584,0.7988,3690.4,3688.6,6.04961875]
[1753375839784,0.7988,3690.4,3690.3,2.70980679]
[1753375839989,0.433,3690.6,3690.5,2.70965993]
[1753375840300,2.70909131,3691.3,3690.5,5.55024667]
[1753375840301,1.2436,3691.3,3690.5,5.55024667]
[1753375840460,0.433,3691.2,3690.7,2.70947703]
[1753375840831,0.433,3691.2,3690.8,4.553]
[1753375841339,0.9169,3691.1,3690.9,2.70935989]
[1753375841483,3.51968409,3691.3,3691.0,4.552]
[1753375841678,3.50717735,3690.8,3690.7,4.552]
[1753375841904,0.7977,3690.8,3690.6,4.552]
[1753375842092,0.9169,3690.7,3690.6,4.552]
[1753375842415,0.433,3690.7,3690.6,4.552]
[1753375842615,0.8137,3691.5,3690.6,4.552]
[1753375842775,0.433,3690.7,3690.6,4.552]
[1753375842979,0.9169,3690.7,3690.6,4.552]
[1753375843193,1.7465,3690.7,3690.6,4.552]
[1753375843681,1.2626,3690.7,3690.6,4.552]
[1753375844080,1.2626,3690.7,3690.6,7.26158651]
[1753375844279,0.433,3691.5,3690.6,5.54913233]
[1753375844496,0.433,3691.5,3690.7,0.02709513]
[1753375844699,0.433,3691.5,3690.9,2.70936627]
[1753375844913,0.433,3691.5,3691.0,4.55]
[1753375845274,0.7689,3692.2,3691.0,4.55]
[1753375845275,0.9169,3691.4,3691.0,4.55]
[1753375845476,8.88261215,3693.2,3691.0,4.55]
[1753375845477,4.55,3692.7,3691.1,2.70921947]
[1753375845680,2.70863859,3691.9,3691.2,7.98502151]
[1753375845903,7.051,3693.5,3691.2,7.98502151]
[1753375845904,0.21231697,3694.6,3691.2,5.27592195]
[1753375846125,1.43106779,3694.7,3691.2,5.27592195]
[1753375846126,2.7081455,3692.6,3691.3,0.02709072]
[1753375846417,2.7078447,3693.0,3692.0,2.7085556]
[1753375846620,2.7076236,3693.3,3692.1,4.549]
[1753375846822,6.23589064,3696.0,3691.2,0.72592195]
[1753375846823,8.88261215,3692.8,3691.2,0.72592195]
[1753375846985,2.70824807,3692.5,3691.3,4.549]
[1753375847188,2.70833897,3692.3,3691.4,4.548]
[1753375847542,2.70833897,3692.3,3690.5,3.54059459]
[1753375847543,2.70905014,3691.4,3690.5,0.831]
[1753375847820,2.70848568,3692.1,3690.1,7.518]
[1753375847821,0.4699,3691.3,3690.1,7.8551]
[1753375847985,2.70951834,3690.7,3690.2,4.548]
[1753375848188,0.4699,3690.6,3690.2,4.548]
[1753375848411,0.4699,3690.5,3690.3,4.548]
[1753375848592,3.25905801,3691.4,3690.1,7.83651]
[1753375848593,0.4699,3690.4,3690.1,7.83651]
[1753375848788,0.4699,3690.3,3690.1,7.051]
[1753375848988,0.55,3690.5,3689.3,2.71049042]
[1753375849300,2.71002946,3690.0,3689.4,4.547]
[1753375849618,4.547,3691.5,3689.6,0.1352]
[1753375849821,2.71002847,3690.0,3689.4,4.547]
[1753375849996,0.1352,3690.1,3689.5,0.1352]
[1753375850199,2.70929625,3691.0,3690.0,0.1]
[1753375850507,4.9395,3692.1,3690.0,0.1]
[1753375850508,0.1352,3690.1,3690.0,4.547]
[1753375850686,0.1352,3690.1,3689.0,0.8232]
[1753375850889,0.1352,3690.1,3688.8,7.518]
[1753375850890,0.1352,3689.6,3689.2,0.1]
[1753375851094,2.70933271,3691.0,3689.3,4.547]
[1753375851287,0.1352,3689.3,3689.1,0.1]
[1753375851688,3.18051476,3689.2,3689.1,0.1]
[1753375852132,3.18051476,3689.2,3689.1,4.646]
[1753375852314,0.1352,3689.3,3689.1,4.646]
[1753375852754,0.8052,3689.2,3689.1,4.646]
[1753375853448,0.7706,3689.6,3689.1,8.0173047]
[1753375853654,0.1352,3689.4,3689.1,5.3066646]
[1753375854022,0.1352,3689.4,3689.2,2.71054364]
[1753375854222,0.1352,3689.4,3689.1,5.3066646]
[1753375854455,0.1352,3689.4,3689.1,8.01734599]
[1753375854654,0.1352,3689.4,3689.1,5.3066646]
[1753375855555,0.1352,3689.4,3689.1,8.01732752]
[1753375855779,0.1352,3689.4,3689.1,5.3066646]
[1753375855961,0.4699,3689.4,3689.1,4.646]
[1753375856163,0.1352,3689.2,3689.1,4.646]
[1753375856360,0.1352,3689.2,3689.1,7.35668824]
[1753375856529,0.55,3690.3,3689.1,7.35668824]
[1753375856530,0.8113,3690.3,3689.1,7.18104906]
[1753375856876,0.1352,3689.4,3689.2,0.1]
[1753375857023,2.71041981,3689.5,3689.2,4.645]
[1753375857223,0.1352,3689.3,3689.2,4.645]
[1753375858160,2.84574129,3689.3,3689.2,0.1]
[1753375858369,4.12694129,3689.3,3689.2,4.644]
[1753375858851,1.4164,3689.3,3688.8,7.051]
[1753375859050,2.71082233,3689.0,3688.9,4.544]
[1753375859359,3.18072233,3689.0,3688.9,4.544]
[1753375859587,2.7108352,3688.9,3688.8,7.051]
[1753375859875,3.3159352,3688.9,3688.8,11.594]
[1753375860241,0.6051,3688.9,3688.8,4.543]
[1753375861165,3.3159352,3688.9,3688.8,4.543]
[1753375862265,2.71092968,3688.8,3688.3,0.001]
[1753375862575,2.71098218,3688.7,3688.4,4.542]
[1753375862743,0.4699,3688.6,3688.4,4.542]
[1753375862949,2.84632918,3688.5,3688.4,4.542]
[1753375863275,3.50110268,3688.4,3688.3,0.001]
[1753375863642,3.97100268,3688.4,3688.3,0.001]
[1753375864040,4.52100268,3688.4,3688.3,0.001]
[1753375864672,7.52100268,3688.4,3688.3,1e-08]
[1753375865065,3.97100268,3688.4,3688.3,1e-08]
[1753375865777,4.52100268,3688.4,3688.3,1e-08]
[1753375868566,3.97100268,3688.4,3688.3,1e-08]
[1753375868770,0.7899,3688.4,3688.3,1e-08]
[1753375869150,3.50110268,3688.4,3688.3,1e-08]
[1753375869467,0.1352,3688.5,3688.3,7.25121136]
[1753375869664,0.1352,3688.5,3688.4,1.47326224]
[1753375870276,0.1352,3688.5,3688.4,1.00626224]
[1753375870477,0.1352,3688.5,3688.3,4.54000001]
[1753375870680,0.1352,3688.5,3688.3,4.64000001]
[1753375872975,0.1352,3688.5,3688.3,4.54000001]
[1753375873319,0.1352,3688.5,3688.4,2.71120268]
[1753375873483,0.8202,3689.7,3688.7,0.1]
[1753375873676,2.71040293,3689.5,3689.0,0.1]
[1753375873882,2.7104756,3689.4,3689.0,0.1]
[1753375874094,0.1352,3689.1,3689.0,0.1]
[1753375874475,0.1352,3689.1,3688.3,0.10000001]
[1753375874675,3.0,3689.7,3688.4,4.538]
[1753375874676,2.71116682,3688.5,3688.4,4.538]
[1753375874874,0.7598,3688.9,3688.4,4.538]
[1753375874875,3.47069605,3688.9,3688.4,4.538]
[1753375875115,0.1352,3688.5,3688.3,1e-08]
[1753375875319,0.1352,3688.5,3688.4,4.537]
[1753375876016,2.84632918,3688.5,3688.4,4.537]
[1753375877483,2.84632918,3688.5,3688.3,1e-08]
[1753375877484,2.71120268,3688.4,3688.3,1e-08]
[1753375877685,3.90790268,3688.4,3688.3,1e-08]
[1753375878118,0.1352,3688.5,3688.3,1e-08]
[1753375878119,2.71117642,3688.5,3688.3,1e-08]
[1753375878282,2.71120268,3688.4,3688.3,1e-08]
[1753375878504,0.7582,3688.8,3688.3,1e-08]
[1753375878698,2.71110512,3688.6,3688.3,1e-08]
[1753375879030,2.71106384,3688.6,3688.3,1e-08]
[1753375879231,3.46911115,3688.8,3688.3,1e-08]
[1753375879567,2.71113163,3688.5,3688.3,1e-08]
[1753375879845,2.71120268,3688.4,3688.3,1e-08]
[1753375880155,2.71114995,3688.5,3688.3,1e-08]
[1753375880319,2.71106881,3688.6,3688.3,1e-08]
[1753375880503,2.71113761,3688.5,3688.3,1e-08]
[1753375880853,2.71115669,3688.5,3688.3,1e-08]
[1753375881067,2.71106569,3688.6,3688.3,1e-08]
[1753375881221,2.7111386,3688.5,3688.3,1e-08]
[1753375882664,2.71098327,3688.7,3688.3,1e-08]
[1753375882964,0.7582,3688.8,3688.3,1e-08]
[1753375883114,3.46912651,3688.8,3688.3,1e-08]
[1753375883318,2.71098218,3688.7,3688.3,1e-08]
[1753375883572,2.71115164,3688.5,3688.3,1e-08]
[1753375884133,2.71065347,3689.2,3688.3,1e-08]
[1753375884134,0.55,3689.2,3688.3,1e-08]
[1753375884332,2.71083359,3689.0,3688.4,0.4475]
[1753375884557,2.71008148,3690.0,3688.4,0.4475]
[1753375884558,0.4385,3689.9,3688.8,2.71084838]
[1753375884824,2.71012339,3689.9,3689.3,0.1]
[1753375885047,2.71012339,3689.9,3689.4,4.532]
[1753375885254,0.24818243,3690.0,3689.5,0.1]
[1753375885576,2.71000625,3690.1,3689.5,0.1]
[1753375885724,2.70974175,3690.4,3689.5,2.81037735]
[1753375885950,2.7100081,3690.1,3689.5,0.1]
[1753375886152,0.24818243,3690.2,3689.5,2.81038278]
[1753375886353,0.8116,3690.5,3689.5,0.1]
[1753375886561,2.70999907,3690.1,3689.6,0.1]
[1753375887267,0.8116,3690.5,3689.9,0.1]
[1753375887582,1.22179745,3691.3,3690.6,0.1]
[1753375887724,2.70919456,3691.2,3690.7,4.531]
[1753375887927,0.4385,3691.1,3690.7,4.531]
[1753375888149,0.1352,3690.8,3690.7,4.531]
[1753375889562,0.1352,3691.1,3690.9,0.1]
[1753375889733,0.1352,3691.1,3690.9,3.25685319]
[1753375890061,0.1352,3691.1,3691.0,0.1]
[1753375890437,0.1352,3691.1,3691.0,4.629]
[1753375890625,0.5737,3691.1,3690.1,0.8248]
[1753375890827,0.5737,3691.1,3689.6,0.80968865]
[1753375890828,0.1352,3690.8,3690.2,4.629]
[1753375891162,2.70963518,3690.6,3690.3,4.529]
[1753375891457,2.70966063,3690.5,3690.3,4.529]
[1753375891660,0.1352,3690.4,3690.3,4.529]
[1753375891860,2.84493336,3690.4,3690.3,4.529]
[1753375892065,2.70992778,3690.2,3689.8,0.8248]
[1753375892267,0.4385,3690.2,3689.9,4.527]
[1753375892466,2.7100271,3690.0,3689.9,4.527]
[1753375892765,2.8452271,3690.0,3689.9,4.527]
[1753375892929,0.1352,3690.0,3689.9,4.527]
[1753375893129,2.8452271,3690.0,3689.9,4.527]
[1753375893333,0.1352,3690.0,3689.9,4.527]
[1753375893668,2.8452271,3690.0,3689.9,4.527]
[1753375894167,0.9503408,3693.1,3690.0,0.1]
[1753375894168,0.8246,3691.1,3690.0,0.1]
[1753375894339,2.70940621,3690.9,3690.0,0.1]
[1753375894529,0.3418,3690.9,3690.0,0.1]
[1753375894959,2.70988022,3690.2,3690.1,4.525]
[1753375895163,0.55,3690.8,3690.1,4.525]
[1753375895463,0.55,3690.9,3689.8,0.1]
[1753375895661,2.71003234,3690.0,3689.9,4.525]
[1753375895861,2.7099731,3690.1,3689.9,4.525]
[1753375896068,2.70990234,3690.2,3689.9,4.525]
[1753375896466,2.70980683,3690.3,3689.9,4.525]
[1753375896670,2.70989431,3690.2,3689.9,4.525]
[1753375897234,2.70983442,3690.3,3689.9,4.525]
[1753375897440,2.70993866,3690.2,3689.9,4.525]
[1753375897663,2.70996299,3690.1,3689.9,4.525]
[1753375897973,0.24770035,3690.7,3689.8,0.1]
[1753375898183,0.4385,3690.4,3689.8,0.1]
[1753375898472,2.7100271,3690.0,3689.9,4.524]
[1753375898670,0.4385,3690.4,3689.9,4.524]
[1753375898871,2.70999789,3690.1,3689.9,4.524]
[1753375899381,0.7795,3690.6,3689.9,4.524]
[1753375899382,0.7795,3690.6,3689.9,4.9715]
[1753375899557,1.2703,3691.3,3690.3,0.1]
[1753375899878,2.70956153,3690.7,3690.4,4.523]
[1753375900060,3.14814377,3690.6,3690.5,4.522]
[1753375900260,2.70964377,3690.6,3690.5,4.522]
[1753375900841,3.14814377,3690.6,3690.5,4.522]
[1753375901242,2.70964377,3690.6,3690.5,4.522]
[1753375901981,2.70934596,3691.0,3690.5,5.287]
[1753375902142,0.7563,3691.6,3690.5,5.287]
[1753375902143,0.7563,3691.6,3690.7,0.1]
[1753375902344,3.7563,3691.6,3690.7,0.1]
[1753375902546,2.70921156,3691.2,3690.7,0.1]
[1753375902877,3.7563,3691.6,3690.7,0.1]
[1753375902878,2.70923233,3691.1,3690.7,0.1]
[1753375903089,0.7563,3691.6,3690.7,0.58345]
[1753375903385,0.4385,3693.8,3691.0,0.1]
[1753375903544,2.5823408,3693.9,3692.4,0.1]
[1753375903545,0.7727,3693.4,3692.4,0.1]
[1753375903740,2.70767897,3693.2,3692.1,0.7525]
[1753375903945,3.14627848,3693.1,3692.4,0.1]
[1753375904166,0.4385,3693.1,3692.4,0.1]
[1753375904488,0.1352,3692.5,3692.4,0.1]
[1753375904662,0.1352,3692.5,3692.4,3.88719429]
[1753375905072,0.1352,3692.5,3692.4,4.33469429]
[1753375905273,0.1352,3692.5,3692.4,4.62]
[1753375905586,0.1352,3692.5,3692.1,0.7525]
[1753375905774,2.71016913,3692.6,3692.4,4.62]
[1753375905982,2.71016913,3692.6,3692.4,4.52]
[1753375906171,0.1352,3692.5,3692.1,0.7525]
[1753375906371,2.70833897,3692.3,3692.2,4.518]
[1753375906759,2.84353897,3692.3,3692.2,4.518]
[1753375906985,0.1352,3692.3,3692.2,4.518]
[1753375907166,0.1352,3692.3,3692.0,0.1]
[1753375907363,2.70841232,3692.2,3692.1,4.518]
[1753375907675,2.84361232,3692.2,3692.1,4.518]
[1753375907986,2.70863241,3691.9,3691.6,0.815]
[1753375908168,2.70863241,3691.9,3691.7,4.518]
[1753375908367,2.70863241,3691.9,3691.6,0.815]
[1753375908687,2.70862937,3692.0,3691.9,0.1]
[1753375908887,0.1352,3692.0,3691.9,0.1]
[1753375909093,0.1352,3692.0,3691.9,2.03028384]
[1753375909295,0.1352,3692.0,3691.9,5.8147]
[1753375909990,0.1352,3692.0,3691.9,4.616]
[1753375910155,0.1352,3692.0,3691.9,0.1]
[1753375910361,0.1352,3692.0,3691.9,4.616]
[1753375911857,0.1352,3692.0,3691.9,4.516]
[1753375912059,0.1352,3692.0,3691.9,4.616]
[1753375912392,0.002,3692.6,3692.5,0.1]
[1753375912594,0.002,3692.6,3692.5,7.32419228]
[1753375912968,0.002,3692.6,3692.5,7.75499228]
[1753375913783,0.002,3692.6,3692.5,8.53609228]
[1753375913982,0.002,3692.6,3692.5,9.93136309]
[1753375914590,0.002,3692.6,3692.5,10.40976309]
[1753375914979,0.002,3692.6,3692.5,7.22317081]
[1753375915289,0.002,3692.6,3692.5,8.53609228]
[1753375916558,0.4461,3694.5,3693.6,0.1]
[1753375916764,0.4461,3694.5,3693.4,0.7931]
[1753375916765,0.4461,3694.5,3693.8,0.1]
[1753375916995,0.55,3694.7,3694.0,0.1]
[1753375917398,0.002,3695.3,3694.3,0.1]
[1753375917562,2.70635994,3695.0,3694.4,4.512]
[1753375917764,2.70626644,3695.2,3694.3,0.64051]
[1753375918073,2.70626644,3695.2,3694.1,0.7931]
[1753375918074,0.4461,3695.1,3694.4,4.512]
[1753375918288,0.002,3695.3,3695.0,0.7931]
[1753375918770,0.002,3695.3,3694.9,4.51]
[1753375918771,2.70635994,3695.0,3694.9,4.51]
[1753375918972,2.70670509,3694.6,3694.5,4.61]
[1753375919184,2.70679948,3694.4,3694.3,4.51]
[1753375919361,2.70672621,3694.5,3694.4,0.1]
[1753375919759,2.70660989,3694.7,3694.3,4.61]
[1753375919760,2.70679948,3694.4,3694.3,4.61]
[1753375919997,2.70656989,3694.8,3694.3,4.61]
[1753375920168,0.7597,3695.1,3694.3,4.61]
[1753375920363,2.70678993,3694.5,3694.3,4.61]
[1753375920568,2.70664667,3694.7,3694.3,5.071]
[1753375920770,2.70639428,3695.0,3694.7,0.1]
[1753375921017,2.70626711,3695.2,3694.9,0.1]
[1753375921508,0.002,3695.3,3695.0,4.509]
[1753375921721,2.70653891,3694.8,3694.4,0.7598]
[1753375922006,2.70638209,3695.0,3694.8,0.1]
[1753375922163,0.002,3695.3,3694.9,4.509]
[1753375922367,0.002,3695.3,3695.2,0.1]
[1753375922669,0.002,3695.3,3695.2,0.8598]
[1753375922977,0.002,3695.3,3695.2,3.99681346]
[1753375923165,0.002,3695.3,3695.2,7.61041346]
[1753375923366,0.002,3695.3,3695.2,7.47521346]
[1753375923600,0.002,3696.0,3695.9,2.70570091]
[1753375923771,0.002,3696.0,3695.9,8.08660091]
[1753375923965,0.002,3696.0,3695.9,8.99580091]
[1753375924796,0.002,3696.0,3695.9,5.7117]
[1753375924998,0.002,3696.0,3695.9,4.507]
[1753375925205,0.002,3696.0,3695.9,4.607]
[1753375925568,0.4481,3696.0,3695.8,4.506]
[1753375925794,0.4481,3696.0,3694.5,0.1]
[1753375925795,2.70650644,3694.8,3694.5,0.1]
[1753375925994,0.829,3694.9,3693.9,0.1]
[1753375926193,0.829,3694.9,3693.3,7.045]
[1753375926194,3.55,3694.7,3693.3,7.045]
[1753375926407,2.70740524,3693.6,3693.4,4.506]
[1753375926608,0.55,3694.5,3693.5,4.506]
[1753375926766,2.70738574,3693.6,3693.5,4.506]
[1753375927168,2.70753235,3693.4,3693.3,7.92028]
[1753375927387,2.70753235,3693.4,3693.3,4.506]
[1753375927623,2.70753235,3693.4,3693.3,4.606]
[1753375927789,3.0,3694.3,3693.5,0.1]
[1753375928119,2.70725038,3693.8,3693.7,0.1]
[1753375928299,2.70725038,3693.8,3693.7,4.605]
[1753375928496,2.70725038,3693.8,3693.7,4.505]
[1753375928700,3.15335038,3693.8,3693.7,4.505]
[1753375928898,0.4461,3693.8,3693.4,4.505]
[1753375929097,3.0,3694.1,3693.4,4.505]
[1753375929295,0.71153343,3698.4,3694.4,0.1]
[1753375929296,2.70672621,3694.5,3694.4,0.1]
[1753375929925,0.4461,3694.5,3694.3,0.1]
[1753375930125,0.4461,3694.5,3694.4,0.1]
[1753375930126,3.15282621,3694.5,3694.4,0.1]
[1753375930421,0.8115,3695.1,3694.4,0.1]
[1753375930583,2.7064076,3695.0,3694.9,0.1]
[1753375930786,2.70623522,3695.2,3693.7,10.045]
[1753375930787,2.70657969,3694.7,3694.6,0.1]
[1753375931040,2.70652445,3694.8,3694.6,4.605]
[1753375931220,2.70644823,3694.9,3694.6,4.605]
[1753375931394,0.8087,3695.2,3694.6,4.605]
[1753375931595,0.4461,3695.5,3694.6,4.605]
[1753375931596,3.0,3695.5,3694.9,0.1]
[1753375932094,2.70635994,3695.0,3694.9,0.1]
[1753375932288,3.0,3695.5,3694.9,0.1]
[1753375932503,2.70630507,3695.1,3694.9,0.1]
[1753375932822,2.70635994,3695.0,3694.9,0.1]
[1753375933289,0.1352,3695.0,3694.9,0.1]
[1753375933925,2.84155994,3695.0,3694.9,0.1]
[1753375934126,0.002,3696.0,3695.4,0.1]
[1753375934289,0.002,3696.0,3695.5,4.503]
[1753375934290,2.70592055,3695.6,3695.5,4.503]
[1753375934691,0.1352,3695.6,3695.5,4.503]
[1753375935099,2.84112055,3695.6,3695.5,4.503]
[1753375935403,2.70599377,3695.5,3695.4,0.1]
[1753375935609,2.70599377,3695.5,3694.3,4.7187]
[1753375935610,2.70614023,3695.3,3695.2,0.1]
[1753375935926,2.7062867,3695.1,3695.0,0.1]
[1753375936332,0.1352,3695.1,3695.0,4.602]
[1753375936505,2.8414867,3695.1,3695.0,0.1]
[1753375936709,2.8414867,3695.1,3694.7,0.1]
[1753375936710,2.70650644,3694.8,3694.7,0.1]
[1753375937043,2.70650644,3694.8,3694.7,4.602]
[1753375937198,2.84170644,3694.8,3694.7,4.602]
[1753375938537,0.8125,3695.9,3695.1,0.1]
[1753375938737,0.002,3696.1,3695.6,0.1]
[1753375938897,2.70575831,3695.9,3695.7,4.501]
[1753375939099,0.002,3696.1,3695.7,4.501]
[1753375941854,2.70570091,3695.9,3695.8,4.601]
[1753375942003,2.70765413,3696.0,3695.8,4.601]
[1753375942202,0.002,3696.0,3695.8,4.601]
[1753375942446,0.002,3696.0,3695.9,0.4361]
[1753375942655,2.70570091,3695.9,3695.8,4.601]
[1753375943025,2.70570091,3695.9,3695.8,0.1]
[1753375943314,2.70592055,3695.6,3695.5,0.1]
[1753375943616,2.70592055,3695.6,3695.5,4.6]
[1753375944632,2.70592055,3695.6,3695.5,0.1]
[1753375944831,2.70592055,3695.6,3695.5,4.6]
[1753375945423,2.70592055,3695.6,3695.5,4.599]
[1753375946812,2.706067,3695.4,3695.3,0.1]
[1753375947014,2.706067,3695.4,3695.3,4.599]
[1753375947260,2.70592055,3695.6,3695.5,0.1]
[1753375948030,2.706067,3695.4,3695.3,4.599]
[1753375948435,2.841267,3695.4,3695.3,4.599]
[1753375949017,0.1352,3695.4,3695.3,4.499]
[1753375949348,0.1352,3695.4,3695.3,4.599]
[1753375949557,2.841267,3695.4,3695.3,4.599]
[1753375949711,2.841267,3695.4,3695.3,4.598]
[1753375949937,0.1352,3695.4,3695.3,4.598]
[1753375950651,0.1352,3695.4,3695.3,0.1]
[1753375950868,2.70635938,3695.1,3694.6,0.8125]
[1753375951179,2.70650644,3694.8,3694.7,0.1]
[1753375951643,2.84170644,3694.8,3694.7,0.1]